[Event "Hungarian U20 Junior-ch Women 2024"]
[Site "Budapest"]
[Date "2024.03.16"]
[Round "6.1"]
[White "Toth, Lili"]
[Black "Sipos, Stefania"]
[Result "1-0"]
[ECO "C50"]
[WhiteElo "2199"]
[BlackElo "1885"]
[Annotator "RC"]
[PlyCount "109"]
[EventDate "2024.03.10"]
[EventCountry "HUN"]
[SourceTitle "playchess.com"]
[Source "ChessBase"]
[SourceQuality "1"]
[TimeControl "40/5400+30:1800+30"]

1. e4 {[%emt 0:00:35]} e5 {[%emt 0:00:44]} 2. Nf3 {[%emt 0:00:06]} Nc6 {[%emt 0:00:04]} 3. Bc4 {[%emt 0:00:06]} Bc5 {[%emt 0:00:09]} 4. d3 {[%emt 0:00:11]} Nf6 {[%emt 0:00:33]} 5. Nc3 {[%emt 0:00:12]} d6 {[%emt 0:00:22]} 6. Na4 {[%emt 0:00:17]} Qe7 {[%emt 0:07:22]} 7. Nxc5 {[%emt 0:00:48]} dxc5 {[%emt 0:00:06]} 8. c3 {[%emt 0:01:12]} Bd7 {[%emt 0:04:05]} 9. Bb3 {[%emt 0:04:20]} h6 {[%emt 0:05:39]} 10. h3 {[%emt 0:00:18]} O-O-O {[%emt 0:04:09]} 11. Qe2 {[%emt 0:01:15]} Kb8 {[%emt 0:05:45]} 12. Be3 {[%emt 0:01:15]} b6 {[%emt 0:10:38]} 13. O-O-O {[%emt 0:11:04]} Na5 {[%emt 0:06:23]} 14. Bc2 {[%emt 0:00:21]} Bb5 {[%emt 0:08:32]} 15. Qe1 {[%emt 0:09:12]} Nc6 {[%emt 0:07:02]} 16. Kb1 {[%emt 0:10:22]} Rhe8 {[%emt 0:04:41]} 17. Nh4 {[%emt 0:06:23]} g6 {[%emt 0:02:50]} 18. g3 {[%emt 0:01:42]} Rh8 {[%emt 0:04:56]} 19. Bc1 {[%emt 0:03:21]} c4 {[%emt 0:04:11]} 20. dxc4 {[%emt 0:01:41]} Rxd1 {[%emt 0:01:08]} 21. Qxd1 {[%emt 0:01:11]} Bxc4 {[%emt 0:00:18]} 22. Qf3 {[%emt 0:00:36]} Be6 {[%emt 0:02:13]} 23. Qe3 {[%emt 0:04:03]} Nd7 {[%emt 0:04:53]} 24. Ng2 {[%emt 0:02:12]} g5 {[%emt 0:04:34]} 25. h4 {[%emt 0:02:19]} g4 {[%emt 0:00:45]} 26. h5 {[%emt 0:01:22]} Na5 {[%emt 0:03:08]} 27. b3 {[%emt 0:00:30]} Nb7 {[%emt 0:01:22]} 28. Rd1 {[%emt 0:03:22]} f6 {[%emt 0:01:54]} 29. Nh4 {[%emt 0:05:25]} Qf7 {[%emt 0:03:15]} 30. Ng6 {[%emt 0:00:24]} Rh7 {[%emt 0:00:21]} 31. Ba3 {[%emt 0:02:14]} a5 {[%emt 0:01:00]} 32. Kb2 {[%emt 0:01:14]} a4 {[%emt 0:00:49]} 33. bxa4 {[%emt 0:01:47]} Na5 {[%emt 0:00:16]} 34. Ka1 {[%emt 0:03:43]} Nc4 {[%emt 0:02:45]} 35. Qc1 {[%emt 0:00:06]} Kb7 {[%emt 0:00:27]} 36. Bb4 {[%emt 0:15:33]} Nb8 {[%emt 0:00:33]} 37. Nf8 {[%emt 0:02:08]} Rh8 {[%emt 0:00:22]} 38. Nxe6 {[%emt 0:00:26]} Qxe6 {[%emt 0:00:05]} 39. Bb3 {[%emt 0:00:04]} Qc6 {[%emt 0:00:46]} 40. Qc2 {[%emt 0:00:00]} Ka7 {[%emt 0:00:00]} 41. Be7 {[%emt 0:01:56]} Re8 {[%emt 0:09:35]} 42. Bxf6 {[%emt 0:11:05]} Na3 {[%emt 0:01:34]} 43. Qb2 {[%emt 0:00:11]} Qxf6 {[%emt 0:00:55]} 44. Qxa3 {[%emt 0:00:06]} Qxf2 {[%emt 0:02:27]} 45. a5 {[%emt 0:00:36]} b5 {[%emt 0:02:40]} 46. c4 {[%emt 0:04:07]} b4 {[%emt 0:11:56]} 47. Qxb4 {[%emt 0:01:44]} Qf8 {[%emt 0:02:30]} 48. Qb5 {[%emt 0:02:06]} Na6 {[%emt 0:00:58]} 49. Ba4 {[%emt 0:11:39]} Re6 {[%emt 0:01:39]} 50. Rb1 {[%emt 0:04:13]} Qc8 {[%emt 0:01:00]} 51. Bd1 {[%emt 0:00:23]} Qb8 {[%emt 0:01:03]} 52. Qd5 {[%emt 0:02:46]} Rd6 {[%emt 0:00:31]} 53. Qxe5 {[%emt 0:01:26]} Qg8 {[%emt 0:00:27]} 54. Qb5 {[%emt 0:01:01]} Qh8+ {[%emt 0:00:31]} 55. e5 {[%emt 0:00:05]} 1-0

[Event "Hungarian U20 Junior-ch Women 2024"]
[Site "Budapest"]
[Date "2024.03.16"]
[Round "6.2"]
[White "Nandin-Erdene, Davaademberel"]
[Black "Kiraly, Lilla Virag"]
[Result "1-0"]
[ECO "B44"]
[WhiteElo "1978"]
[BlackElo "1923"]
[Annotator "NA RC"]
[PlyCount "71"]
[EventDate "2024.03.10"]
[EventCountry "HUN"]
[SourceTitle "playchess.com"]
[Source "ChessBase"]
[SourceQuality "1"]
[TimeControl "40/5400+30:1800+30"]

1. e4 {[%emt 0:00:36]} c5 {[%emt 0:00:49]} 2. Nf3 {[%emt 0:00:06]} e6 {[%emt 0:00:32]} 3. d4 {[%emt 0:00:11]} cxd4 {[%emt 0:00:10]} 4. Nxd4 {[%emt 0:00:06]} Nc6 {[%emt 0:00:23]} 5. c4 {[%emt 0:00:54]} a6 {[%emt 0:02:29]} 6. Nc3 {[%emt 0:00:45]} Bb4 {[%emt 0:05:07]} 7. Qd3 {[%emt 0:06:15]} Qc7 {[%emt 0:17:05]} 8. a3 {[%emt 0:02:50]} Bc5 {[%emt 0:09:38]} 9. Nxc6 {[%emt 0:02:23]} bxc6 {[%emt 0:06:37]} 10. b4 {[%emt 0:00:52]} Be7 {[%emt 0:10:04]} 11. Be2 {[%emt 0:10:14]} Bb7 {[%emt 0:15:35]} 12. O-O {[%emt 0:05:04]} Nf6 {[%emt 0:08:38]} 13. Be3 {[%emt 0:18:40]} O-O {[%emt 0:11:07]} 14. Rfc1 {[%emt 0:08:43]} Rfd8 {[%emt 0:04:47]} 15. Na4 {[%emt 0:01:43]} c5 {[%emt 0:02:38]} 16. Nxc5 {[%emt 0:09:34]} Bxc5 {[%emt 0:00:14]} 17. Bxc5 {[%emt 0:00:18]} Bxe4 {[%emt 0:01:28]} 18. Qe3 {[%emt 0:00:30]} Rdc8 {[%emt 0:01:16]} 19. Be7 {[%emt 0:01:37]} Bg6 {[%emt 0:00:34]} 20. Bf3 {[%emt 0:00:46]} Rab8 {[%emt 0:00:34]} 21. c5 {[%emt 0:00:50]} Ne8 {[%emt 0:00:25]} 22. Bh4 {[%emt 0:03:33]} f6 {[%emt 0:00:44]} 23. Bg3 {[%emt 0:00:24]} e5 {[%emt 0:00:09]} 24. Bd5+ {[%emt 0:05:03]} Kh8 {[%emt 0:00:27]} 25. f4 {[%emt 0:01:53]} d6 {[%emt 0:00:40]} 26. Ba2 {[%emt 0:03:15]} dxc5 {[%emt 0:00:25]} 27. fxe5 {[%emt 0:00:35]} Qe7 {[%emt 0:00:40]} 28. e6 {[%emt 0:01:59]} Nc7 {[%emt 0:00:39]} 29. bxc5 {[%emt 0:00:53]} Rb5 {[%emt 0:00:26]} 30. Bd6 {[%emt 0:00:17]} Qe8 {[%emt 0:00:25]} 31. e7 {[%emt 0:01:04]} Qc6 {[%emt 0:00:39]} 32. Bb3 {[%emt 0:11:03]} Rb7 {[%emt 0:00:17]} 33. Rd1 {[%emt 0:00:52]} Qe4 {[%emt 0:00:43]} 34. Qxe4 {[%emt 0:00:31]} Bxe4 {[%emt 0:00:07]} 35. Bxc7 {[%emt 0:00:05]} Rbxc7 {[%emt 0:00:47]} 36. Rd8+ {[%emt 0:00:07]} 1-0

[Event "Hungarian U20 Junior-ch Women 2024"]
[Site "Budapest"]
[Date "2024.03.16"]
[Round "6.3"]
[White "Szarvas, Nora"]
[Black "Sulyok, Eszter"]
[Result "0-1"]
[ECO "B12"]
[WhiteElo "1955"]
[BlackElo "2082"]
[Annotator "NA RC"]
[PlyCount "68"]
[EventDate "2024.03.10"]
[EventCountry "HUN"]
[SourceTitle "playchess.com"]
[Source "ChessBase"]
[SourceQuality "1"]
[TimeControl "40/5400+30:1800+30"]

1. e4 {[%emt 0:00:34]} c6 {[%emt 0:00:42]} 2. d4 {[%emt 0:00:08]} d5 {[%emt 0:00:04]} 3. e5 {[%emt 0:00:06]} Bf5 {[%emt 0:00:25]} 4. h4 {[%emt 0:00:08]} h5 {[%emt 0:00:17]} 5. Bd3 {[%emt 0:01:37]} Bxd3 {[%emt 0:00:26]} 6. Qxd3 {[%emt 0:00:09]} Qa5+ {[%emt 0:00:02]} 7. c3 {[%emt 0:02:40]} e6 {[%emt 0:00:23]} 8. Ne2 {[%emt 0:02:13]} c5 {[%emt 0:10:49]} 9. O-O {[%emt 0:02:05]} Nc6 {[%emt 0:01:17]} 10. Nd2 {[%emt 0:04:04]} Nge7 {[%emt 0:06:16]} 11. Nf3 {[%emt 0:03:30]} Nf5 {[%emt 0:07:00]} 12. Bg5 {[%emt 0:02:10]} c4 {[%emt 0:08:53]} 13. Qd2 {[%emt 0:02:23]} Be7 {[%emt 0:02:10]} 14. Bxe7 {[%emt 0:04:01]} Ncxe7 {[%emt 0:00:41]} 15. Nf4 {[%emt 0:02:52]} Rh6 {[%emt 0:09:09]} 16. g3 {[%emt 0:03:50]} O-O-O {[%emt 0:04:51]} 17. Ng5 {[%emt 0:03:49]} Rf8 {[%emt 0:05:42]} 18. Qe2 {[%emt 0:03:43]} Ng6 {[%emt 0:05:00]} 19. Nxg6 {[%emt 0:03:19]} Rxg6 {[%emt 0:00:09]} 20. Qxh5 {[%emt 0:03:10]} Rh6 {[%emt 0:03:11]} 21. Qe2 {[%emt 0:03:02]} Qd8 {[%emt 0:05:22]} 22. Nf3 {[%emt 0:08:11]} Rfh8 {[%emt 0:08:37]} 23. Qd2 {[%emt 0:14:56]} Nxh4 {[%emt 0:10:09]} 24. Nxh4 {[%emt 0:04:12]} g5 {[%emt 0:03:22]} 25. Ng6 {[%emt 0:13:06]} fxg6 {[%emt 0:01:11]} 26. Kg2 {[%emt 0:00:56]} Rh2+ {[%emt 0:01:40]} 27. Kf3 {[%emt 0:00:32]} Qf8+ {[%emt 0:00:10]} 28. Ke2 {[%emt 0:00:32]} Qf5 {[%emt 0:00:14]} 29. Qe3 {[%emt 0:01:25]} Rf8 {[%emt 0:00:40]} 30. Rac1 {[%emt 0:00:58]} Qg4+ {[%emt 0:00:38]} 31. Ke1 {[%emt 0:01:06]} Rf3 {[%emt 0:00:36]} 32. Qe2 {[%emt 0:00:29]} Qf5 {[%emt 0:01:22]} 33. Qc2 {[%emt 0:02:03]} Rd3 {[%emt 0:01:09]} 34. Rg1 {[%emt 0:01:39]} Re3+ {[%emt 0:01:01]} 0-1

[Event "Hungarian U20 Junior-ch Women 2024"]
[Site "Budapest"]
[Date "2024.03.16"]
[Round "6.5"]
[White "Karacsonyi, Luca"]
[Black "Toth, Nikoletta"]
[Result "0-1"]
[ECO "C50"]
[WhiteElo "1956"]
[BlackElo "1962"]
[Annotator "NA RC"]
[PlyCount "106"]
[EventDate "2024.03.10"]
[EventCountry "HUN"]
[SourceTitle "playchess.com"]
[Source "ChessBase"]
[SourceQuality "1"]
[TimeControl "40/5400+30:1800+30"]

1. e4 {[%emt 0:00:35]} e5 {[%emt 0:00:34]} 2. Nf3 {[%emt 0:00:06]} Nc6 {[%emt 0:00:04]} 3. Bc4 {[%emt 0:00:07]} Bc5 {[%emt 0:00:05]} 4. d3 {[%emt 0:00:08]} Nf6 {[%emt 0:00:16]} 5. Nc3 {[%emt 0:00:12]} h6 {[%emt 0:01:27]} 6. h3 {[%emt 0:00:09]} a6 {[%emt 0:00:33]} 7. Be3 {[%emt 0:00:11]} d6 {[%emt 0:07:57]} 8. Bxc5 {[%emt 0:06:46]} dxc5 {[%emt 0:00:05]} 9. a4 {[%emt 0:04:47]} O-O {[%emt 0:01:42]} 10. Ne2 {[%emt 0:04:31]} Rb8 {[%emt 0:05:19]} 11. a5 {[%emt 0:04:38]} Qe7 {[%emt 0:05:48]} 12. c3 {[%emt 0:04:26]} b5 {[%emt 0:02:14]} 13. axb6 {[%emt 0:08:31]} cxb6 {[%emt 0:00:27]} 14. Bd5 {[%emt 0:17:15]} Nxd5 {[%emt 0:10:27]} 15. exd5 {[%emt 0:00:23]} Na5 {[%emt 0:00:51]} 16. Ng3 {[%emt 0:06:43]} f5 {[%emt 0:03:09]} 17. O-O {[%emt 0:08:53]} Qd6 {[%emt 0:05:25]} 18. c4 {[%emt 0:04:15]} e4 {[%emt 0:02:39]} 19. Nh2 {[%emt 0:04:58]} exd3 {[%emt 0:16:20]} 20. Qxd3 {[%emt 0:00:59]} f4 {[%emt 0:00:47]} 21. Ne4 {[%emt 0:01:23]} Bf5 {[%emt 0:02:21]} 22. Nxd6 {[%emt 0:04:44]} Bxd3 {[%emt 0:00:08]} 23. Rfd1 {[%emt 0:01:51]} Bc2 {[%emt 0:04:02]} 24. Re1 {[%emt 0:03:39]} Rbd8 {[%emt 0:13:24]} 25. Re6 {[%emt 0:07:13]} Bb3 {[%emt 0:01:00]} 26. Rxa5 {[%emt 0:02:58]} bxa5 {[%emt 0:00:39]} 27. Nb7 {[%emt 0:00:11]} Rb8 {[%emt 0:03:23]} 28. Nxa5 {[%emt 0:00:38]} Ba4 {[%emt 0:02:46]} 29. Nf3 {[%emt 0:00:14]} Rfe8 {[%emt 0:02:45]} 30. Rxa6 {[%emt 0:01:18]} Rxb2 {[%emt 0:02:06]} 31. Nc6 {[%emt 0:02:00]} Bxc6 {[%emt 0:01:35]} 32. dxc6 {[%emt 0:01:00]} Rc8 {[%emt 0:00:34]} 33. Ne5 {[%emt 0:00:13]} Re2 {[%emt 0:00:28]} 34. Nd7 {[%emt 0:00:33]} Re6 {[%emt 0:00:16]} 35. Nxc5 {[%emt 0:00:56]} Rexc6 {[%emt 0:00:14]} 36. Rxc6 {[%emt 0:00:05]} Rxc6 {[%emt 0:00:06]} 37. Nd3 {[%emt 0:00:20]} Rxc4 {[%emt 0:00:12]} 38. h4 {[%emt 0:01:00]} g5 {[%emt 0:02:23]} 39. hxg5 {[%emt 0:00:23]} hxg5 {[%emt 0:00:07]} 40. Kh2 {[%emt 0:00:00]} Kg7 {[%emt 0:00:00]} 41. f3 {[%emt 0:03:35]} Kf6 {[%emt 0:08:12]} 42. Nf2 {[%emt 0:01:09]} Ra4 {[%emt 0:03:25]} 43. Ng4+ {[%emt 0:00:56]} Ke6 {[%emt 0:00:42]} 44. Nf2 {[%emt 0:00:23]} Ra8 {[%emt 0:01:02]} 45. Ng4 {[%emt 0:01:02]} Kd5 {[%emt 0:01:15]} 46. Nf6+ {[%emt 0:01:29]} Ke5 {[%emt 0:01:12]} 47. Ne4 {[%emt 0:01:02]} Rh8+ {[%emt 0:00:26]} 48. Kg1 {[%emt 0:00:06]} g4 {[%emt 0:00:53]} 49. Ng5 {[%emt 0:01:28]} Kf5 {[%emt 0:01:30]} 50. Nf7 {[%emt 0:00:14]} Rh7 {[%emt 0:01:32]} 51. fxg4+ {[%emt 0:00:18]} Kxg4 {[%emt 0:00:18]} 52. Ne5+ {[%emt 0:00:04]} Kg3 {[%emt 0:00:33]} 53. Nf3 {[%emt 0:00:15]} Ra7 {[%emt 0:00:18]} 0-1

[Event "Hungarian U20 Junior-ch Women 2024"]
[Site "Budapest"]
[Date "2024.03.17"]
[Round "7.2"]
[White "Juhasz, Judit"]
[Black "Karacsonyi, Luca"]
[Result "1-0"]
[ECO "C44"]
[WhiteElo "2002"]
[BlackElo "1956"]
[Annotator "NA RC"]
[PlyCount "81"]
[EventDate "2024.03.10"]
[EventType "tourn"]
[EventCountry "HUN"]
[SourceTitle "playchess.com"]
[Source "ChessBase"]
[SourceQuality "1"]
[TimeControl "40/5400+30:1800+30"]

1. e4 {[%emt 0:00:33]} e5 {[%emt 0:00:44]} 2. Nf3 {[%emt 0:00:04]} Nc6 {[%emt 0:00:04]} 3. d4 {[%emt 0:00:04]} exd4 {[%emt 0:00:07]} 4. Nxd4 {[%emt 0:00:04]} Qf6 {[%emt 0:00:07]} 5. Ne2 {[%emt 0:00:04]} Bc5 {[%emt 0:02:29]} 6. Nf4 {[%emt 0:00:05]} Nge7 {[%emt 0:07:44]} 7. Be2 {[%emt 0:03:13]} d6 {[%emt 0:03:07]} 8. O-O {[%emt 0:01:25]} g5 {[%emt 0:12:01]} 9. Nh5 {[%emt 0:07:26]} Qg6 {[%emt 0:03:08]} 10. Be3 {[%emt 0:11:18]} Bd7 {[%emt 0:12:32]} 11. Nc3 {[%emt 0:05:18]} O-O-O {[%emt 0:03:49]} 12. Qd2 {[%emt 0:07:30]} f5 {[%emt 0:06:32]} 13. exf5 {[%emt 0:18:01]} Nxf5 {[%emt 0:03:39]} 14. Bxc5 {[%emt 0:09:47]} dxc5 {[%emt 0:00:26]} 15. Ne4 {[%emt 0:11:07]} Nfd4 {[%emt 0:17:58]} 16. Nhg3 {[%emt 0:01:20]} Bf5 {[%emt 0:02:45]} 17. Bh5 {[%emt 0:05:03]} Qe6 {[%emt 0:05:54]} 18. Nxc5 {[%emt 0:05:38]} Nf3+ {[%emt 0:07:15]} 19. Bxf3 {[%emt 0:00:13]} Rxd2 {[%emt 0:00:03]} 20. Nxe6 {[%emt 0:00:06]} Bxe6 {[%emt 0:00:04]} 21. Ne4 {[%emt 0:02:07]} Rxc2 {[%emt 0:01:35]} 22. Nxg5 {[%emt 0:00:37]} Bc4 {[%emt 0:04:09]} 23. Rfc1 {[%emt 0:00:35]} Rxc1+ {[%emt 0:00:28]} 24. Rxc1 {[%emt 0:00:03]} Bxa2 {[%emt 0:01:33]} 25. Bxc6 {[%emt 0:00:57]} bxc6 {[%emt 0:00:05]} 26. Ra1 {[%emt 0:04:26]} Bd5 {[%emt 0:01:23]} 27. Rxa7 {[%emt 0:00:16]} Kb8 {[%emt 0:02:46]} 28. Ra3 {[%emt 0:00:03]} Rg8 {[%emt 0:00:30]} 29. f4 {[%emt 0:01:50]} h6 {[%emt 0:00:30]} 30. Nf3 {[%emt 0:00:02]} Kb7 {[%emt 0:01:01]} 31. Kf2 {[%emt 0:00:06]} Kb6 {[%emt 0:00:26]} 32. g3 {[%emt 0:02:32]} Kc5 {[%emt 0:00:47]} 33. Ne5 {[%emt 0:00:58]} h5 {[%emt 0:00:31]} 34. Ke3 {[%emt 0:01:37]} Be6 {[%emt 0:00:43]} 35. Rc3+ {[%emt 0:00:17]} Kd5 {[%emt 0:00:27]} 36. Nxc6 {[%emt 0:00:13]} Ra8 {[%emt 0:00:29]} 37. Nb4+ {[%emt 0:01:19]} Kd6 {[%emt 0:00:12]} 38. Rc6+ {[%emt 0:00:33]} Kd7 {[%emt 0:00:05]} 39. Rc5 {[%emt 0:00:20]} Rb8 {[%emt 0:01:06]} 40. Nd3 {[%emt 0:00:00]} Rb3 {[%emt 0:00:00]} 41. Kd4 {[%emt 0:00:34]} 1-0

[Event "Hungarian U20 Junior-ch Women 2024"]
[Site "Budapest"]
[Date "2024.03.17"]
[Round "7.4"]
[White "Kiraly, Lilla Virag"]
[Black "Szarvas, Nora"]
[Result "0-1"]
[ECO "A43"]
[WhiteElo "1923"]
[BlackElo "1955"]
[Annotator "NA RC"]
[PlyCount "86"]
[EventDate "2024.03.10"]
[EventType "tourn"]
[EventCountry "HUN"]
[SourceTitle "playchess.com"]
[Source "ChessBase"]
[SourceQuality "1"]
[TimeControl "40/5400+30:1800+30"]

1. d4 {[%emt 0:00:42]} c5 {[%emt 0:01:01]} 2. d5 {[%emt 0:04:51]} Nf6 {[%emt 0:00:25]} 3. Bf4 {[%emt 0:05:43]} d6 {[%emt 0:05:22]} 4. c4 {[%emt 0:08:12]} e6 {[%emt 0:09:45]} 5. Nc3 {[%emt 0:06:10]} exd5 {[%emt 0:02:49]} 6. cxd5 {[%emt 0:02:53]} Be7 {[%emt 0:02:17]} 7. e4 {[%emt 0:06:44]} O-O {[%emt 0:01:43]} 8. Be2 {[%emt 0:02:01]} Na6 {[%emt 0:01:46]} 9. Nf3 {[%emt 0:04:03]} Nc7 {[%emt 0:01:16]} 10. Nd2 {[%emt 0:07:53]} a6 {[%emt 0:04:06]} 11. a4 {[%emt 0:01:43]} Rb8 {[%emt 0:00:38]} 12. a5 {[%emt 0:05:11]} b5 {[%emt 0:02:56]} 13. axb6 {[%emt 0:01:49]} Rxb6 {[%emt 0:01:28]} 14. Nc4 {[%emt 0:01:37]} Rb4 {[%emt 0:03:58]} 15. O-O {[%emt 0:08:18]} Nfe8 {[%emt 0:25:54]} 16. Na5 {[%emt 0:17:51]} Bd7 {[%emt 0:03:10]} 17. Qd2 {[%emt 0:05:08]} Qb8 {[%emt 0:07:11]} 18. Ra2 {[%emt 0:03:00]} Nb5 {[%emt 0:03:32]} 19. f3 {[%emt 0:05:09]} Nec7 {[%emt 0:03:01]} 20. Nc6 {[%emt 0:00:42]} Bxc6 {[%emt 0:00:42]} 21. dxc6 {[%emt 0:00:07]} Nd4 {[%emt 0:02:49]} 22. Bg3 {[%emt 0:00:58]} Nxc6 {[%emt 0:01:25]} 23. Bxd6 {[%emt 0:00:37]} Qd8 {[%emt 0:03:35]} 24. Bf4 {[%emt 0:00:29]} Rd4 {[%emt 0:01:38]} 25. Qe3 {[%emt 0:00:21]} Nb4 {[%emt 0:01:58]} 26. Bxc7 {[%emt 0:00:40]} Qxc7 {[%emt 0:00:20]} 27. Ra4 {[%emt 0:00:12]} Bf6 {[%emt 0:04:55]} 28. Kh1 {[%emt 0:00:26]} Qc6 {[%emt 0:02:24]} 29. Bd1 {[%emt 0:00:34]} Rfd8 {[%emt 0:01:15]} 30. e5 {[%emt 0:00:25]} Be7 {[%emt 0:00:46]} 31. f4 {[%emt 0:00:27]} Rxd1 {[%emt 0:00:22]} 32. Nxd1 {[%emt 0:00:47]} Qxa4 {[%emt 0:00:06]} 33. Nc3 {[%emt 0:00:12]} Qc6 {[%emt 0:00:36]} 34. f5 {[%emt 0:00:23]} Nd5 {[%emt 0:00:37]} 35. Nxd5 {[%emt 0:00:41]} Qxd5 {[%emt 0:00:18]} 36. f6 {[%emt 0:00:16]} Bf8 {[%emt 0:00:16]} 37. Qf4 {[%emt 0:00:34]} Re8 {[%emt 0:00:37]} 38. Re1 {[%emt 0:00:42]} gxf6 {[%emt 0:00:38]} 39. Qxf6 {[%emt 0:00:26]} Bg7 {[%emt 0:00:12]} 40. Qg5 {[%emt 0:00:00]} Rxe5 {[%emt 0:00:00]} 41. Qc1 {[%emt 0:05:05]} Rxe1+ {[%emt 0:01:39]} 42. Qxe1 {[%emt 0:00:08]} Qe5 {[%emt 0:00:41]} 43. Qd1 {[%emt 0:00:39]} Qxb2 {[%emt 0:01:19]} 0-1

[Event "Hungarian U20 Junior-ch Women 2024"]
[Site "Budapest"]
[Date "2024.03.17"]
[Round "7.5"]
[White "Sipos, Stefania"]
[Black "Nandin-Erdene, Davaademberel"]
[Result "1-0"]
[ECO "B12"]
[WhiteElo "1885"]
[BlackElo "1978"]
[Annotator "NA RC"]
[PlyCount "53"]
[EventDate "2024.03.10"]
[EventType "tourn"]
[EventCountry "HUN"]
[SourceTitle "playchess.com"]
[Source "ChessBase"]
[SourceQuality "1"]
[TimeControl "40/5400+30:1800+30"]

1. e4 {[%emt 0:00:35]} c6 {[%emt 0:00:51]} 2. d4 {[%emt 0:00:10]} d5 {[%emt 0:00:05]} 3. e5 {[%emt 0:00:12]} Bf5 {[%emt 0:00:09]} 4. g4 {[%emt 0:00:20]} Bg6 {[%emt 0:03:16]} 5. e6 {[%emt 0:00:15]} fxe6 {[%emt 0:04:15]} 6. h4 {[%emt 0:00:18]} h5 {[%emt 0:04:30]} 7. Bd3 {[%emt 0:00:25]} Bxd3 {[%emt 0:14:40]} 8. Qxd3 {[%emt 0:00:07]} Qd6 {[%emt 0:05:48]} 9. Qg6+ {[%emt 0:06:43]} Kd8 {[%emt 0:01:01]} 10. Nf3 {[%emt 0:05:47]} Nh6 {[%emt 0:10:25]} 11. Qxh5 {[%emt 0:22:05]} Rg8 {[%emt 0:14:43]} 12. Ne5 {[%emt 0:08:39]} Nd7 {[%emt 0:04:55]} 13. g5 {[%emt 0:18:13]} Nxe5 {[%emt 0:10:00]} 14. gxh6 {[%emt 0:06:05]} Nd7 {[%emt 0:10:25]} 15. Qf7 {[%emt 0:04:59]} Nf6 {[%emt 0:01:19]} 16. Qxg8 {[%emt 0:06:55]} Nxg8 {[%emt 0:01:53]} 17. h7 {[%emt 0:00:05]} Nf6 {[%emt 0:00:38]} 18. h8=Q {[%emt 0:00:08]} Kd7 {[%emt 0:03:23]} 19. Bg5 {[%emt 0:07:32]} Qb4+ {[%emt 0:01:36]} 20. Nd2 {[%emt 0:00:49]} Qxb2 {[%emt 0:01:50]} 21. Rb1 {[%emt 0:02:56]} Qxd4 {[%emt 0:00:05]} 22. Bxf6 {[%emt 0:01:28]} gxf6 {[%emt 0:02:10]} 23. Rxb7+ {[%emt 0:01:03]} Kd6 {[%emt 0:00:11]} 24. Qh5 {[%emt 0:03:47]} Qa1+ {[%emt 0:00:38]} 25. Qd1 {[%emt 0:00:17]} Qe5+ {[%emt 0:01:40]} 26. Kf1 {[%emt 0:00:32]} Bh6 {[%emt 0:00:25]} 27. Nc4+ {[%emt 0:00:17]} 1-0

[Event "Hungarian U20 Junior-ch Women 2024"]
[Site "Budapest"]
[Date "2024.03.18"]
[Round "8.2"]
[White "Szarvas, Nora"]
[Black "Sipos, Stefania"]
[Result "1-0"]
[ECO "C44"]
[WhiteElo "1955"]
[BlackElo "1885"]
[Annotator "NA RC"]
[PlyCount "65"]
[EventDate "2024.03.10"]
[EventType "tourn"]
[EventCountry "HUN"]
[SourceTitle "playchess.com"]
[Source "ChessBase"]
[SourceQuality "1"]
[TimeControl "40/5400+30:1800+30"]

1. e4 {[%emt 0:00:34]} e5 {[%emt 0:00:35]} 2. Nf3 {[%emt 0:00:22]} Nc6 {[%emt 0:00:06]} 3. d4 {[%emt 0:00:16]} exd4 {[%emt 0:00:09]} 4. Nxd4 {[%emt 0:00:10]} Qf6 {[%emt 0:00:39]} 5. Nf3 {[%emt 0:01:04]} Bc5 {[%emt 0:06:29]} 6. Nc3 {[%emt 0:02:20]} Nge7 {[%emt 0:04:26]} 7. Bg5 {[%emt 0:05:57]} Qg6 {[%emt 0:05:57]} 8. Qd2 {[%emt 0:02:07]} h6 {[%emt 0:03:16]} 9. Be3 {[%emt 0:02:44]} Bxe3 {[%emt 0:04:51]} 10. Qxe3 {[%emt 0:00:13]} O-O {[%emt 0:04:05]} 11. O-O-O {[%emt 0:02:39]} a6 {[%emt 0:07:42]} 12. g4 {[%emt 0:06:57]} b5 {[%emt 0:05:02]} 13. Rg1 {[%emt 0:02:55]} Qe6 {[%emt 0:12:59]} 14. h4 {[%emt 0:03:30]} b4 {[%emt 0:08:23]} 15. Nd5 {[%emt 0:02:33]} Nxd5 {[%emt 0:03:01]} 16. Rxd5 {[%emt 0:01:36]} Re8 {[%emt 0:02:33]} (16... d6 $16 {was called for.}) 17. Qb3 $2 {[%emt 0:05:40]} (17. g5 $18 h5 18. Bc4) 17... a5 $11 {[%emt 0:05:26]} ({Black should play} 17... Qxe4 $17 18. g5 Kf8) 18. Bc4 {[%emt 0:05:04]} a4 {[%emt 0:04:04]} 19. Qd3 {[%emt 0:00:38]} Qxe4 {[%emt 0:03:07]} 20. Rf5 {[%emt 0:01:32]} Qxd3 {[%emt 0:03:35]} 21. Bxf7+ {[%emt 0:00:43]} Kh8 {[%emt 0:01:12]} 22. cxd3 {[%emt 0:00:07]} Rf8 {[%emt 0:02:40]} 23. g5 {[%emt 0:07:45]} Ne7 {[%emt 0:06:40]} 24. Rf4 {[%emt 0:00:46]} h5 {[%emt 0:02:53]} 25. g6 {[%emt 0:02:57]} Ra5 {[%emt 0:00:45]} 26. Re4 {[%emt 0:04:03]} Bb7 {[%emt 0:01:59]} 27. Re5 {[%emt 0:01:55]} Rxe5 {[%emt 0:00:25]} 28. Nxe5 {[%emt 0:00:05]} Nf5 {[%emt 0:00:40]} 29. Rg5 {[%emt 0:01:27]} Nh6 {[%emt 0:00:09]} 30. Nxd7 {[%emt 0:03:10]} Rd8 {[%emt 0:00:57]} 31. Ne5 {[%emt 0:00:29]} Rf8 {[%emt 0:00:38]} 32. Rxh5 {[%emt 0:00:18]} Bc8 {[%emt 0:00:23]} 33. Bc4 {[%emt 0:00:27]} 1-0